Cogmind - Beta 17 @@@ ROGUE MODE // 2026.07.12 @ 10:48:40 Player: IsAway Result: Destroyed by D5-9CJ(R) with Subdweller Beam Cannon Performance ------------- Evolutions (0) 0 Regions Visited (2) 400 Robots Destroyed (24) 120 Value Destroyed (585) 585 Prototype IDs (19) 380 Alien Tech Used (0) 0 Bonus (0) 0 TOTAL SCORE: 1485 Bonus ------- None Cogmind --------- Core Integrity 0/250 Matter 343/500 Energy 180/180 System Corruption 0% Temperature Cool (9) Movement Rolling (90) Location -10/Subcaves Parts ------- > --- POWER (1) -------- Meta Core > --- PROPULSION (2+1) - Armored Wheel (+) Armored Wheel Armored Wheel > --- UTILITY (2+1) ---- Medium Storage Unit High-capacity Matter Pod (+) Improved Targeting Computer > --- WEAPON (2+1) ----- Subdweller Beam Cannon Subdweller Machine Gun (+) Subdweller Machine Gun > --- INVENTORY (10) --- Makeshift Leg Arachnoskeleton Humpback Self-contained Transmogrifier Autogun Grenade Launcher Mining Laser Peak State ------------ > --- POWER ------------ Meta Core > --- PROPULSION ------- Armored Wheel Armored Wheel Armored Wheel > --- UTILITY ---------- Medium Storage Unit High-capacity Matter Pod Improved Targeting Computer > --- WEAPON ----------- Subdweller Beam Cannon Subdweller Machine Gun Subdweller Machine Gun > --- INVENTORY -------- Makeshift Leg Arachnoskeleton Humpback Self-contained Transmogrifier Autogun Grenade Launcher Mining Laser [Rating: 33] Favorites ----------- Power Ion Engine Engine Ion Engine Power Core Meta Core Propulsion Armored Wheel Leg Aluminum Leg Wheel Armored Wheel Utility Improved Targeting Computer Device Seismic Detector Storage Medium Storage Unit Processor Improved Targeting Computer Weapon Autogun Energy Gun EM Pulse Gun Energy Cannon Subdweller Beam Cannon Ballistic Gun Autogun Launcher Grenade Launcher Special Weapon Mining Laser Build | -11 -10 -10 ------- Run | Yrd Mat Sub Slots Evolved . | . . . Power . | . . . Propulsion . | . . . Utility . | . . . Weapon . | . . . Parts Attached 28 | 9 11 8 Power 3 | 1 1 1 Engine 2 | 1 1 . Core 1 | . . 1 Reactor . | . . . Propulsion 8 | 4 2 2 Treads . | . . . Leg 2 | 2 . . Wheel 6 | 2 2 2 Hover . | . . . Flight . | . . . Utility 5 | 2 2 1 Device 1 | 1 . . Storage 3 | 1 1 1 Processor 1 | . 1 . Hackware . | . . . Protection . | . . . Artifact . | . . . Weapon 12 | 2 6 4 Energy Gun 2 | 2 . . Energy Cannon 1 | . . 1 Ballistic Gun 7 | . 4 3 Ballistic Cannon . | . . . Launcher 1 | . 1 . Special Weapon 1 | . 1 . Impact Weapon . | . . . Slashing Weapon . | . . . Piercing Weapon . | . . . Special Melee Weapon . | . . . Unidentified Prototypes . | . . . Parts Lost 5 | . 1 4 Power 2 | . 1 1 Propulsion 1 | . . 1 Utility . | . . . Weapon 2 | . . 2 Highest Loss Streak 4 | . 1 4 To Critical Strikes . | . . . Average Backups 7 | 2 8 7 Power . | . . . Propulsion 1 | 1 1 2 Utility 2 | . 2 1 Weapon 3 | . 3 3 Tool/Special . | . . . Unused Backups 12 | . 3 9 Power 1 | . . 1 Propulsion 2 | . . 2 Utility 6 | . 1 5 Weapon 2 | . 2 . Tool/Special 1 | . . 1 Average Slot Usage (%) 97 | . 99 96 Engine 11 | . 13 8 Core 1 | . . 3 Leg 5 | . 8 . Wheel 21 | . 19 26 Device 2 | . 4 . Storage 14 | . 14 15 Processor 10 | . 9 12 Energy Gun 2 | . 4 . Energy Cannon 1 | . . 3 Ballistic Gun 18 | . 20 16 Launcher 1 | . 1 1 Special Weapon 3 | . 1 7 Peak Build Rating 33 | 7 13 33 Average Rating 14 | 5 10 20 On Entrance 6 | . 7 12 Avg Prop Armor Cover (%) . | . . . Naked Turns . | . . . Heaviest Build 36 | 14 21 36 Greatest Support 36 | 20 24 36 Greatest Overweight (x) 3 | 1 3 2 Average Overweight (x) . | . . . Largest Inventory Capacity 10 | 8 10 10 Average Capacity 9 | 7 9 10 Most Carried 10 | 5 10 10 Average Carried 8 | 2 8 9 Final Capacity 10 | 8 10 10 Final Carried 10 | 5 10 10 Class Distribution -------------------- 84% | Mutant 15% | Gunner Dominant Class ---------------- Mutant | -10/Materials Mutant | -10/Subcaves Resources | -11 -10 -10 ----------- Run | Yrd Mat Sub Matter Collected 1042 | 192 406 444 Remotely . | . . . Salvage Created 758 | 114 407 237 Parts 47 | 6 31 10 Haulers Intercepted . | . . . Recyclers Shooed . | . . . Parts Field Recycled . | . . . Retrieved Matter . | . . . Parts Self-Destructed 7 | . . 7 Prevented . | . . . Parts Restored . | . . . Kills | -11 -10 -10 ------- Run | Yrd Mat Sub Combat Hostiles Destroyed 16 | . 11 5 Guns 14 | . 9 5 AOE 2 | . 2 . Classes Destroyed 10 | 2 6 2 Worker 1 | . 1 . Builder 1 | . 1 . Tunneler 2 | 2 . . Recycler 1 | 1 . . Mechanic 1 | . 1 . Watcher 2 | . 2 . Swarmer 3 | . 3 . Grunt 9 | . 8 1 Sentry 1 | . . 1 Subdweller 3 | . . 3 Best Kill Streak 8 | 3 8 2 Combat Bots Only 3 | . 3 2 Max Kills in Single Turn 2 | 1 2 1 Gunslinging . | . . . Exploded 1 | . 1 . Melee . | . . . Uniques/NPCs Destroyed . | . . . Combat | -11 -10 -10 -------- Run | Yrd Mat Sub Hostile Shots Fired 100 | . 50 50 Missed 27 | . 18 9 Hits 73 | . 32 41 Projectile 73 | . 32 41 Critical Strikes 2 | . . 2 Damage Taken 1093 | . 336 757 Core 256 | . 78 178 Absorbed by Shields . | . . . Core Remaining (%) 100 | 100 . . Volleys Fired 91 | 3 44 44 Largest 3 | 2 2 3 Hottest 140 | 80 100 140 Shots Fired 168 | 6 83 79 Gun 141 | 6 74 61 Cannon 5 | . . 5 Launcher 4 | . 4 . Special 18 | . 5 13 Kinetic 132 | . 71 61 Thermal 26 | 3 5 18 Explosive 4 | . 4 . Electromagnetic 6 | 3 3 . Robot Hit Streak 12 | 2 9 12 Robot Miss Streak 3 | 1 3 1 Penetration Max . | . . . Secondary Targets 3 | . 1 2 Max Gunslinging Chain 1 | . 1 1 Shots Hit Robots 103 | 4 46 53 Core Hits 39 | 3 25 11 Critical Kills 1 | . 1 . Critical Parts Destroyed . | . . . Critical Strikes 1 | . 1 . Destroy 1 | . 1 . Melee Attacks . | . . . Impact . | . . . Slashing . | . . . Piercing . | . . . Sneak Attacks . | . . . Combat Hostiles . | . . . Follow-up Attacks . | . . . Damage Inflicted 1731 | 67 856 808 Guns 1470 | 35 684 751 Cannons 57 | . . 57 Explosions 198 | 32 166 . Melee . | . . . Ramming 6 | . 6 . Kinetic 1435 | . 684 751 Thermal 99 | 42 . 57 Explosive 166 | . 166 . Electromagnetic 25 | 25 . . Impact . | . . . Slashing . | . . . Piercing . | . . . Highest Corruption . | . . . Average Corruption . | . . . Corruption Purged . | . . . Corruption Blocked . | . . . Overload Shots . | . . . Overflow Damage . | . . . Projectiles . | . . . Explosions . | . . . Melee . | . . . Knockbacks . | . . . Impact . | . . . Kinetic . | . . . Secondary . | . . . Self-Inflicted Damage 3 | . 3 . Shots . | . . . Rammed 1 | . 1 . Targets Rammed 1 | . 1 . Kicked . | . . . Crushed . | . . . Highest Temperature 99 | 36 40 99 Average Temperature 17 | 18 13 44 Received Heat Transfer 303 | . 159 144 Siege Activations . | . . . Martial Activations . | . . . Shielding Activations . | . . . Robots Disrupted . | . . . Combat Hostiles . | . . . Robots Corrupted . | . . . Combat Hostiles . | . . . Parts Fried . | . . . Impact Corruptions . | . . . Robots Melted . | . . . Combat Hostiles . | . . . Parts Melted . | . . . Heat Transferred 99 | 25 . 74 Parts Sabotaged . | . . . Parts Stolen . | . . . Parts Stripped . | . . . Power Chain Reactions 1 | 1 . . Alert | -11 -10 -10 ------- Run | Yrd Mat Sub Maximum Alert Level . | . . . Low Security (%) 100 | 100 100 . Level 1 . | . . . Level 2 . | . . . Level 3 . | . . . Level 4 . | . . . Level 5 . | . . . High Security . | . . . Max Security . | . . . Peak Influence 189 | 5 189 . Initial . | . . . Average 56 | 1 62 . Influence Increases 406 | 15 351 40 Destroy 0b10 Robot/C 260 | . 220 40 Destroy 0b10 Robot/NC 40 | 15 25 . Destroy Leader 44 | . 44 . Successful Hack 36 | . 36 . Destroy Structure 26 | . 26 . Influence Decreases 406 | 15 178 213 Entered New Map 84 | . . 84 Time Decay 312 | 15 168 129 Lost Part 10 | . 10 . Squads Dispatched 2 | . 2 . Investigation 2 | . 2 . Extermination . | . . . Reinforcement . | . . . Assault . | . . . Garrison . | . . . Intercept . | . . . Searches Triggered . | . . . Construction Impeded . | . . . Haulers Reinforced . | . . . Active Scanning Responses . | . . . Cargo Convoy Interrupts . | . . . Stealth | -11 -10 -10 --------- Run | Yrd Mat Sub Distress Signals . | . . . Communications Jammed . | . . . Distress Signals . | . . . Times Spotted 25 | . 17 8 Peak Tracking Total 3 | . 3 3 Tactical Retreats . | . . . Traps | -11 -10 -10 ------- Run | Yrd Mat Sub Traps Triggered 2 | . 2 . Indirectly . | . . . Trap Hack Attempts . | . . . Triggered . | . . . Disarmed . | . . . Reprogrammed . | . . . Reused . | . . . Traps Extracted . | . . . Installed . | . . . Triggered . | . . . Machines | -11 -10 -10 ---------- Run | Yrd Mat Sub Machines Disabled 1 | . . 1 Max in Single Turn 1 | . . 1 Machines Repaired . | . . . Machines Dismantled . | . . . Machines Sabotaged . | . . . Overloaded Fab Kills . | . . . Hacking | -11 -10 -10 --------- Run | Yrd Mat Sub Machines Accessed 7 | . 6 1 Terminals 5 | . 5 . Fabricators . | . . . Repair Stations . | . . . Recycling Units 1 | . 1 . Scanalyzers . | . . . Garrison Access . | . . . Total Hacks 28 | . 19 9 Successful 17 | . 8 9 Failed 10 | . 10 . Catastrophic 2 | . 2 . Database Lockouts 1 | . 1 . Manual 10 | . 10 . Terminals 17 | . 17 . Fabricators . | . . . Repair Stations . | . . . Recycling Units 2 | . 2 . Scanalyzers . | . . . Garrison Access . | . . . Terminal Hacks 15 | . 6 9 Record 8 | . . 8 Part Schematic 2 | . 2 . Prototype ID Bank 3 | . 3 . Branch Access Points 1 | . 1 . Proto ID Catalog 1 | . . 1 Fabricator Hacks . | . . . Repair Station Hacks . | . . . Recycling Unit Hacks 2 | . 2 . Process 1 | . 1 . Retrieve Matter 1 | . 1 . Scanalyzer . | . . . Garrison Access Hacks . | . . . Unauthorized Hacks . | . . . Terminals . | . . . Fabricators . | . . . Repair Stations . | . . . Recycling Units . | . . . Scanalyzers . | . . . Garrison Access . | . . . Data Cores Recovered . | . . . Used . | . . . Hacking Detections 5 | . 5 . Full Trace Events 1 | . 1 . Feedback Events . | . . . Feedback Blocked . | . . . Robot Schematics Acquired . | . . . Robots Built . | . . . Authchips . | . . . Time . | . . . Total Robot Build Rating . | . . . Part Schematics Acquired 2 | . 2 . Parts Built . | . . . Authchips . | . . . Time . | . . . Total Part Build Rating . | . . . Part Studies Acquired . | . . . Parts Repaired . | . . . Time . | . . . Parts Recycled . | . . . Recycled Matter 90 | . 90 . Retrieved Matter 90 | . 90 . Retrieved Components . | . . . Parts Scanalyzed . | . . . Part Schematics Acquired . | . . . Parts Damaged . | . . . Bothacking | -11 -10 -10 ------------ Run | Yrd Mat Sub Used RIF Installer . | . . . Robots Hacked . | . . . Non-combat . | . . . Combat . | . . . Robot Hacks Applied . | . . . Relay Couplers Released . | . . . Fabnet Peak Effective % . | . . . Robots Rewired . | . . . Allies Hacked . | . . . Hacks Repelled . | . . . Allies | -11 -10 -10 -------- Run | Yrd Mat Sub Total Allies . | . . . Largest Group . | . . . Highest-Rated Group . | . . . Highest-Rated Ally . | . . . Total Orders . | . . . Ally Attacks . | . . . Total Damage . | . . . Kills . | . . . Allies Corrupted . | . . . Allies Melted . | . . . Intel | -11 -10 -10 ------- Run | Yrd Mat Sub Active Infowar (turns) 284 | 18 266 . Seismic 284 | 18 266 . Robot Analysis Total . | . . . Derelict Logs Recovered . | . . . Drone Launches . | . . . Drone Recoveries . | . . . Exploration | -11 -10 -10 ------------- Run | Yrd Mat Sub Turns Passed 1429 | 85 788 556 Spaces Moved 981 | 55 577 349 Core 3 | 1 2 . Treads . | . . . Legs 186 | 36 150 . Wheels 792 | 18 425 349 Hover . | . . . Flight . | . . . Fastest Speed 50 | 50 90 90 Average Speed 96 | 108 98 91 Slowest Speed 200 | 190 200 120 Overloaded Moves . | . . . Propulsion Burnouts . | . . . Robots Hopped . | . . . Potential Cave-ins . | . . . Cave-ins Triggered . | . . . Exploration Rate (%) 31 | 4 70 19 Regions Visited 2 Branch Regions 1 Pre-discovered Areas . | . . . Known Exits Taken . | . . . Unknown Exits Taken 2 | 1 1 . Scrap Searched 3 | . . 3 Spaces Dug 5 | . 5 . Terrain Destroyed 39 | . 38 1 Melee . | . . . Projectile 6 | . 5 1 AOE 33 | . 33 . Terrain Rammed . | . . . Walls Destroyed . | . . . Machines Disabled . | . . . Actions | -11 -10 -10 --------- Run | Yrd Mat Sub Total 1283 | 71 722 490 Wait 123 | . 61 62 Move 979 | 54 576 349 Hop . | . . . Pick Up 24 | 3 14 7 Fast Attach 17 | 9 4 4 Attach 5 | . 2 3 Detach 2 | 2 . . Swap 16 | . 6 10 Drop 22 | . 14 8 Fire 91 | 3 44 44 Melee . | . . . Ram 1 | . 1 . Kick . | . . . Crush . | . . . Escape Stasis . | . . . Rewire 3 | . . 3 Trap . | . . . Miscellaneous . | . . . Route ------- -11/Scrapyard -10/Materials (discovered 5 exits: [*Mat x2] / *Min x2 / *Sub) -10/Subcaves History --------- Turn | Location | Event 16 | -11/Scrapyard | Discovered new exit (range 15) 86 | -11/Scrapyard | Entered Materials 158 | -10/Materials | Identified exit to Mines 318 | -10/Materials | Build established: Mutant 405 | -10/Materials | Discovered new exit (range 11) 683 | -10/Materials | Discovered new exit (range 15) 693 | -10/Materials | Central database locked down 865 | -10/Materials | Discovered new exit (range 10) 874 | -10/Materials | Entered Subcaves 917 | -10/Subcaves | Visited 4L-MR0's lab 931 | -10/Subcaves | Found Arachnoskeleton 935 | -10/Subcaves | Found Prototype Device 1137 | -10/Subcaves | A swath of the cavern ceiling suddenly collapsed 1187 | -10/Subcaves | A Subdweller sparked back to life 1187 | -10/Subcaves | A Subdweller sparked back to life 1195 | -10/Subcaves | Core integrity fell below 50% 1235 | -10/Subcaves | Core integrity fell below 20% 1242 | -10/Subcaves | Found Meta Core 1243 | -10/Subcaves | Attached Meta Core, gained temporary slots: Propulsion, Utility, Weapon 1263 | -10/Subcaves | Lost 4 parts (1p1n2w) 1430 | -10/Subcaves | Destroyed by D5-9CJ(R) with Subdweller Beam Cannon Last Messages --------------- Acquired 59 matter. Acquired 40 matter. Acquired Meta Core. Core temporarily expanded with Propulsion slot. Core temporarily expanded with Utility slot. Core temporarily expanded with Weapon slot. Acquired 59 matter. Acquired Sub. Beam Cannon. Acquired Sub. Machine Gun. Acquired Sub. Optics. Acquired Sub. Machine Gun. Acquired Sub. Power Source. Dropped Sub. Power Source. Dropped Sub. Optics. Acquired Humpback. Acquired Arm. Wheel. Y-45 Defender destroyed. Acquired 39 matter. Lgt. Treads fries itself beyond repair. Imp. Ion Engine fries itself beyond repair. Map ----- +----------------------------------------------------+ | ??????????# ######## #????????????? | | ??????????## ##??????# ##???????????? | | ???????????## #???????# #???????????? | | ????????????## #?????### #???????????? | | ?????????????### ####?## ##???????????? | | ???????????????##### ### #????????????? | | ???????????????# ## #????????????? | | ???????????????# ### #????????????? | | ??????????????## # #????????????? | | ??????????????# ## #???????????? | | ??????????????# # ##???????????? | | ??????????????# #### ## ##????????????? | | ??????????????## #? #?????????????? | | ???????????????# ### #?#### ????????????? | | ???????????????# ## ### ##???? ???????????? | | ???????????????# ## ##?## ##????# #???????????? | | ???????????????# # ???### ##????##????????????? | | ???????????????###" ????## #??????????????????? | | ??????????????????"" ???## #??????????????????? | | ??????????????????"""### ?## ##??????????????????? | | ??????????????????"" #??### ##???????????????????? | | ??????????????????" ##???## #????????????????????? | | ?????????????????#""?????#" #????????????????????? | | ?????????????????#"" #####" ##???????????????????? | | ?????????????????#" ""## #???????????????????? | | ??????????????????# @ "##???????????????????? | | ??????????????????# ###????????????????????? | | ??????????????????# #??????????????????????? | | ??????????????????#" # ##??????????????????????? | | ??????????????????# ?# ????????????????????????? | | ???????????????????? # ????????????????????????? | | ??????????????????? # ????????????????????????? | | ??????????????????# ?# ????????????????????????? | | ????????????????? ??# ????????????????????????? | | ???????????????? ?? ?????????????????????????? | | ???????????????# ???RR?????????????????????????? | | ??????????????? ???? "?????????????????????????? | | ???????????????? ???? ??????????????????????????? | | ?????????????????????????????????????????????????? | | ?????????????????????????????????????????????????? | | ?????????????????????????????????????????????????? | | ?????????????????????????????????????????????????? | | ?????????????????????????????????????????????????? | | ?????????????????????????????????????????????????? | | ?????????????????????????????????????????????????? | | ?????????????????????????????????????????????????? | | ?????????????????????????????????????????????????? | | ?????????????????????????????????????????????????? | | ?????????????????????????????????????????????????? | | ?????????????????????????????????????????????????? | +----------------------------------------------------+ Best States ------------- Heat Dissipation 25 Energy Generation 17 Energy Capacity 250 Matter Stores 354 Matter Capacity 500 Sight Range 16 Terrain Scan Density 10 Evasion (%) 55 Targeting Accuracy 6 Item Schematics ----------------- Lrg. Storage Unit | -10/Materials | Hacked Huge Storage Unit | -10/Materials | Hacked Robot Schematics ------------------ None Fabricated ------------ Nothing Repaired ---------- Nothing Studied --------- None Alien Tech Used ----------------- None Achievements -------------- Mistaken Identity Challenges ------------ None Game ------ Seed MicrowarpDisruptorSlamshotty Manual? 0 Play Time 00:26:57 Cumulative 29.4 hours Start 2026.07.12 @ 10:12:09 End 2026.07.12 @ 10:48:40 Sessions 1 Manual Loads 0 Difficulty Rogue Special Mode None Game No. 42 Rogue 42 Adventurer 0 Explorer 0 Win Type - Total 0 Types 0/0/0/0/0/0/0/0/0/0 Lore% 30 Gallery% 23 Achievement% 22 Wizard Run 0 Options --------- Layout 1 ASCII 0 Keyboard 0 Movement Mouse Keybinds 0 Fullscreen 1 Font 18/SmallcapsGlow Map View 51x41 Zoom Use 0% Tactical HUD 0 Map Filters NONE Filters NONE Steam 1 RUN: b67b47a8-4c5d-4cb7-aa77-5a115054f5ce